[Event "47th GRE-chT 2019"]
[Site "Patra"]
[Date "2019.07.04"]
[Round "4.39"]
[White "Patrelakis, Evaggelos"]
[Black "Gavriilidis, Orestis"]
[Result "1-0"]
[ECO "B36"]
[WhiteElo "2209"]
[BlackElo "1906"]
[Annotator "NA"]
[PlyCount "90"]
[EventDate "2019.07.02"]
[EventCountry "GRE"]
[SourceTitle "playchess.com"]
[Source "ChessBase"]
[SourceQuality "1"]
[TimeControl "5400+30"]

1. e4 {[%emt 0:00:00]} c5 {[%emt 0:00:00]} 2. Nf3 {[%emt 0:00:00]} Nc6 {[%emt 0:00:00]} 3. d4 {[%emt 0:00:00]} cxd4 {[%emt 0:00:00]} 4. Nxd4 {[%emt 0:00:00]} g6 {[%emt 0:00:02]} 5. c4 {[%emt 0:00:06]} Nf6 {[%emt 0:00:08]} 6. Nc3 {[%emt 0:00:06]} Nxd4 {[%emt 0:00:04]} 7. Qxd4 {[%emt 0:00:08]} d6 {[%emt 0:00:21]} 8. Be3 {[%emt 0:00:14]} Bg7 {[%emt 0:00:05]} 9. f3 {[%emt 0:01:45]} O-O {[%emt 0:00:46]} 10. Qd2 {[%emt 0:00:00]} a5 {[%emt 0:00:53]} 11. b3 {[%emt 0:00:52]} a4 {[%emt 0:02:45]} 12. b4 {[%emt 0:01:15]} Be6 {[%emt 0:01:14]} 13. Rc1 {[%emt 0:01:21]} Nd7 {[%emt 0:18:10]} 14. Be2 {[%emt 0:02:32]} Rc8 {[%emt 0:09:39]} 15. Nxa4 {[%emt 0:07:08]} Ne5 {[%emt 0:01:23]} 16. Nb6 {[%emt 0:04:47]} Rc6 {[%emt 0:00:43]} 17. Nd5 {[%emt 0:00:11]} Bxd5 {[%emt 0:01:26]} 18. exd5 {[%emt 0:00:38]} Ra6 {[%emt 0:04:13]} 19. O-O {[%emt 0:06:02]} Qa8 {[%emt 0:00:39]} 20. Rc2 {[%emt 0:00:07]} Ra3 {[%emt 0:05:28]} 21. f4 {[%emt 0:08:50]} Nd7 {[%emt 0:00:50]} 22. c5 {[%emt 0:00:33]} Qa4 {[%emt 0:03:24]} 23. Bf2 {[%emt 0:02:05]} Rc8 {[%emt 0:08:21]} 24. Rfc1 {[%emt 0:04:14]} dxc5 {[%emt 0:08:33]} 25. bxc5 {[%emt 0:01:40]} Nf6 {[%emt 0:04:37]} 26. Bf3 {[%emt 0:01:55]} Rd8 {[%emt 0:10:34]} 27. d6 {[%emt 0:02:43]} Rxf3 {[%emt 0:00:54]} 28. gxf3 {[%emt 0:00:27]} Qc6 {[%emt 0:00:19]} 29. Qa5 {[%emt 0:11:59]} Re8 {[%emt 0:02:33]} 30. Qa3 {[%emt 0:00:32]} Nd5 {[%emt 0:03:48]} 31. Rc4 {[%emt 0:00:24]} Bh6 {[%emt 0:02:55]} 32. Qa4 {[%emt 0:05:37]} Nxf4 {[%emt 0:07:03]} 33. Qxc6 {[%emt 0:00:51]} bxc6 {[%emt 0:00:04]} 34. Re1 {[%emt 0:00:39]} Nd5 {[%emt 0:01:59]} 35. a4 {[%emt 0:01:49]} Bd2 {[%emt 0:00:57]} 36. Re2 {[%emt 0:00:13]} Bg5 {[%emt 0:01:47]} 37. Bh4 {[%emt 0:01:35]} Bxh4 {[%emt 0:00:52]} 38. Rxh4 {[%emt 0:00:01]} e5 {[%emt 0:00:50]} 39. Rxe5 {[%emt 0:00:48]} Ra8 {[%emt 0:00:36]} 40. d7 {[%emt 0:00:00]} Nf6 {[%emt 0:00:00]} 41. Rd4 {[%emt 0:00:00]} Rd8 {[%emt 0:00:00]} 42. a5 {[%emt 0:00:00]} Rxd7 {[%emt 0:00:00]} 43. Rdd5 {[%emt 0:00:08]} Rd6 44. Rxd6 {[%emt 0:00:00]} Nd7 {[%emt 0:00:00]} 45. Rde6 {[%emt 0:00:00]} Kg7 {[%emt 0:00:00]} 1-0

[Event "47th GRE-chT 2019"]
[Site "Patra"]
[Date "2019.07.04"]
[Round "4.40"]
[White "Kapia, Aggeliki"]
[Black "Antonioudakis, Georgios"]
[Result "0-1"]
[ECO "B07"]
[WhiteElo "1168"]
[BlackElo "1385"]
[Annotator "NA"]
[PlyCount "62"]
[EventDate "2019.07.02"]
[EventCountry "GRE"]
[SourceTitle "playchess.com"]
[Source "ChessBase"]
[SourceQuality "1"]
[TimeControl "5400+30"]

1. d4 {[%emt 0:00:00]} Nf6 {[%emt 0:00:00]} 2. Nf3 {[%emt 0:00:00]} g6 {[%emt 0:00:00]} 3. g3 {[%emt 0:00:00]} Bg7 {[%emt 0:00:00]} 4. Bg2 {[%emt 0:00:00]} O-O {[%emt 0:00:00]} 5. O-O {[%emt 0:00:00]} d6 {[%emt 0:00:00]} 6. Nc3 {[%emt 0:00:00]} Nbd7 {[%emt 0:01:11]} 7. e4 {[%emt 0:00:49]} c5 {[%emt 0:01:01]} 8. Re1 {[%emt 0:01:17]} cxd4 {[%emt 0:03:43]} 9. Nxd4 {[%emt 0:00:28]} Nc5 {[%emt 0:00:35]} 10. Bg5 {[%emt 0:08:30]} Qb6 {[%emt 0:04:55]} 11. Nb3 {[%emt 0:03:16]} Be6 {[%emt 0:03:55]} 12. Nd5 {[%emt 0:14:12]} Bxd5 {[%emt 0:02:21]} 13. exd5 {[%emt 0:00:38]} Nxb3 {[%emt 0:00:28]} 14. axb3 {[%emt 0:00:25]} Rfe8 {[%emt 0:00:17]} 15. Be3 {[%emt 0:00:36]} Qc7 {[%emt 0:00:20]} 16. Bd4 {[%emt 0:06:39]} a6 {[%emt 0:03:23]} 17. c4 {[%emt 0:09:17]} Rac8 {[%emt 0:04:29]} 18. Bh3 {[%emt 0:03:31]} Rb8 {[%emt 0:01:06]} 19. Qd2 {[%emt 0:01:28]} b5 {[%emt 0:08:00]} 20. Rec1 {[%emt 0:02:34]} bxc4 {[%emt 0:02:08]} 21. bxc4 {[%emt 0:00:47]} Ne4 {[%emt 0:00:12]} 22. Qe3 {[%emt 0:01:52]} Bxd4 {[%emt 0:00:04]} 23. Qxd4 {[%emt 0:00:36]} Nc5 {[%emt 0:00:04]} 24. Rc3 {[%emt 0:03:31]} Nb3 {[%emt 0:00:31]} 25. Rxb3 {[%emt 0:00:21]} Rxb3 {[%emt 0:00:02]} 26. Rxa6 {[%emt 0:00:51]} Qb8 {[%emt 0:05:24]} 27. Bd7 {[%emt 0:13:13]} Rd8 {[%emt 0:12:16]} 28. Bb5 {[%emt 0:20:05]} Rc8 {[%emt 0:05:07]} 29. Kg2 {[%emt 0:03:51]} Qb7 {[%emt 0:19:55]} 30. Ra7 {[%emt 0:01:31]} e5 {[%emt 0:01:06]} 31. Qxe5 {[%emt 0:02:55]} Qxa7 {[%emt 0:00:14]} 0-1

[Event "47th GRE-chT 2019"]
[Site "Patra"]
[Date "2019.07.05"]
[Round "5.1"]
[White "Cheparinov, Ivan"]
[Black "Saric, Ivan"]
[Result "1/2-1/2"]
[ECO "B94"]
[WhiteElo "2666"]
[BlackElo "2681"]
[Annotator "ChessBase"]
[PlyCount "72"]
[EventDate "2019.07.02"]
[EventCountry "GRE"]
[SourceTitle "playchess.com"]
[Source "ChessBase"]
[SourceQuality "1"]
[TimeControl "5400+30"]

1. e4 {[%emt 0:01:16]} c5 {[%emt 0:00:00]} 2. Nf3 {[%emt 0:00:06]} d6 {[%emt 0:00:00]} 3. d4 {[%emt 0:00:04]} cxd4 {[%emt 0:00:00]} 4. Nxd4 {[%emt 0:00:05]} Nf6 {[%emt 0:00:00]} 5. Nc3 {[%emt 0:00:04]} a6 {[%emt 0:00:02]} 6. Bg5 {[%emt 0:00:06]} Nbd7 {[%emt 0:00:56]} 7. Bc4 {[%emt 0:00:17]} Qb6 {[%emt 0:00:19]} 8. Bb3 {[%emt 0:00:13]} e6 {[%emt 0:00:26]} 9. Qd2 {[%emt 0:00:06]} Be7 {[%emt 0:01:00]} 10. O-O-O {[%emt 0:00:07]} Nc5 {[%emt 0:00:15]} 11. f3 {[%emt 0:00:07]} Bd7 {[%emt 0:02:31]} 12. g4 {[%emt 0:01:03]} Qc7 {[%emt 0:00:44]} 13. a3 {[%emt 0:03:03]} b5 {[%emt 0:09:42]} 14. Ba2 {[%emt 0:00:47]} Qb7 {[%emt 0:19:21]} 15. b4 {[%emt 0:01:37]} Na4 {[%emt 0:01:47]} 16. Nxa4 {[%emt 0:01:32]} bxa4 {[%emt 0:00:03]} 17. Kb2 {[%emt 0:00:30]} a5 {[%emt 0:11:29]} 18. c3 {[%emt 0:00:32]} O-O {[%emt 0:00:23]} 19. h4 {[%emt 0:00:35]} Rfc8 {[%emt 0:01:59]} 20. Rc1 {[%emt 0:13:23]} Bb5 {[%emt 0:08:10]} 21. c4 {[%emt 0:08:04]} Be8 {[%emt 0:00:52]} 22. b5 {[%emt 0:00:30]} h6 {[%emt 0:03:22]} 23. Be3 {[%emt 0:05:47]} d5 {[%emt 0:04:59]} 24. g5 {[%emt 0:06:29]} dxc4 {[%emt 0:05:45]} 25. gxf6 {[%emt 0:00:36]} Bxf6 {[%emt 0:00:03]} 26. Qc3 {[%emt 0:06:30]} Rc5 {[%emt 0:02:47]} 27. Ka1 {[%emt 0:03:43]} Rd8 {[%emt 0:00:49]} 28. Rhd1 {[%emt 0:03:46]} Rxb5 {[%emt 0:00:57]} 29. Rd2 {[%emt 0:05:06]} Rh5 {[%emt 0:04:42]} 30. Bf2 {[%emt 0:03:15]} Qb8 {[%emt 0:06:21]} 31. Rcd1 {[%emt 0:06:50]} Rb5 {[%emt 0:01:30]} 32. Be3 {[%emt 0:04:37]} Qb7 {[%emt 0:03:13]} 33. Rg1 {[%emt 0:07:11]} Kh8 {[%emt 0:02:02]} 34. Rdg2 {[%emt 0:01:27]} Qb6 {[%emt 0:04:42]} 35. Rd2 {[%emt 0:04:08]} Qb7 {[%emt 0:01:00]} 36. Rdg2 {[%emt 0:05:09]} Qb6 {[%emt 0:01:33]} 1/2-1/2

[Event "47th GRE-chT 2019"]
[Site "Patra"]
[Date "2019.07.05"]
[Round "5.1"]
[White "Banikas, Hristos"]
[Black "Macieja, Bartlomiej"]
[Result "0-1"]
[ECO "E10"]
[WhiteElo "2601"]
[BlackElo "2500"]
[Annotator "RC"]
[PlyCount "114"]
[EventDate "2019.07.02"]
[EventCountry "GRE"]
[SourceTitle "playchess.com"]
[Source "ChessBase"]
[SourceQuality "1"]
[TimeControl "5400+30"]

1. d4 {[%emt 0:00:00]} Nf6 {[%emt 0:04:23]} 2. c4 {[%emt 0:00:00]} e6 {[%emt 0:00:06]} 3. Nf3 {[%emt 0:00:00]} d5 {[%emt 0:00:03]} 4. g3 {[%emt 0:00:00]} Bb4+ {[%emt 0:00:03]} 5. Bd2 {[%emt 0:00:04]} Be7 {[%emt 0:00:06]} 6. Bg2 {[%emt 0:00:04]} c6 {[%emt 0:00:02]} 7. Qc2 {[%emt 0:00:07]} O-O {[%emt 0:00:06]} 8. O-O {[%emt 0:00:06]} Nbd7 {[%emt 0:00:11]} 9. Rd1 {[%emt 0:00:08]} b6 {[%emt 0:00:03]} 10. Bf4 {[%emt 0:00:07]} Bb7 {[%emt 0:00:09]} 11. Ne5 {[%emt 0:00:06]} Nh5 {[%emt 0:00:13]} 12. Bd2 {[%emt 0:00:05]} Nhf6 {[%emt 0:00:08]} 13. cxd5 {[%emt 0:00:05]} cxd5 {[%emt 0:00:03]} 14. Nc6 {[%emt 0:00:07]} Bxc6 {[%emt 0:00:05]} 15. Qxc6 {[%emt 0:00:05]} Rc8 {[%emt 0:00:16]} 16. Qb5 {[%emt 0:00:05]} Ne8 {[%emt 0:00:05]} 17. e3 {[%emt 0:00:15]} Nd6 {[%emt 0:00:06]} 18. Qe2 {[%emt 0:00:03]} f5 {[%emt 0:27:07]} 19. Be1 {[%emt 0:00:38]} Nf6 {[%emt 0:00:24]} 20. Nc3 {[%emt 0:01:46]} g5 {[%emt 0:14:53]} 21. Rdc1 {[%emt 0:00:40]} g4 {[%emt 0:24:22]} 22. Rc2 {[%emt 0:02:39]} Nfe4 {[%emt 0:14:22]} 23. Rac1 {[%emt 0:00:21]} Qd7 {[%emt 0:02:04]} 24. Qa6 {[%emt 0:01:18]} Nxc3 {[%emt 0:02:41]} 25. Rxc3 {[%emt 0:04:04]} Rxc3 {[%emt 0:00:46]} 26. Rxc3 {[%emt 0:00:05]} Rc8 {[%emt 0:01:03]} 27. Rxc8+ {[%emt 0:02:22]} Nxc8 {[%emt 0:00:02]} 28. Bf1 {[%emt 0:00:11]} Qc7 {[%emt 0:04:11]} 29. a4 {[%emt 0:00:09]} Kf7 {[%emt 0:01:29]} 30. a5 {[%emt 0:00:14]} Nd6 {[%emt 0:00:27]} 31. axb6 {[%emt 0:00:11]} axb6 {[%emt 0:00:30]} 32. Bc3 {[%emt 0:02:24]} h5 {[%emt 0:02:14]} 33. Qa8 {[%emt 0:01:00]} Qc8 {[%emt 0:00:13]} 34. Qa7 {[%emt 0:02:07]} Qb7 {[%emt 0:00:03]} 35. Qa4 {[%emt 0:00:05]} h4 {[%emt 0:01:52]} 36. gxh4 {[%emt 0:01:13]} Bxh4 {[%emt 0:00:12]} 37. h3 {[%emt 0:00:59]} Ne4 {[%emt 0:00:20]} 38. Be1 {[%emt 0:00:03]} Ng5 {[%emt 0:00:30]} 39. Bg2 {[%emt 0:00:45]} gxh3 {[%emt 0:02:38]} 40. Bh1 {[%emt 0:00:00]} Qc7 {[%emt 0:00:00]} 41. Qd1 {[%emt 0:00:00]} Kg6 {[%emt 0:00:00]} 42. f4 {[%emt 0:00:00]} Bxe1 {[%emt 0:00:00]} 43. Qxe1 {[%emt 0:00:00]} Nh7 {[%emt 0:00:00]} 44. Bf3 {[%emt 0:00:00]} Nf6 {[%emt 0:00:00]} 45. Kh2 {[%emt 0:00:00]} Qc2+ {[%emt 0:00:00]} 46. Kxh3 {[%emt 0:00:00]} Qxb2 {[%emt 0:00:00]} 47. Qg1+ {[%emt 0:00:00]} Kf7 {[%emt 0:00:00]} 48. Kh4 {[%emt 0:00:00]} Qc2 {[%emt 0:00:34]} 49. Kg5 {[%emt 0:00:00]} Qc8 {[%emt 0:00:34]} 50. Qb1 {[%emt 0:00:00]} Qg8+ {[%emt 0:00:40]} 51. Kh4 {[%emt 0:00:00]} Ne4 {[%emt 0:00:13]} 52. Qe1 {[%emt 0:00:00]} Qh7+ {[%emt 0:02:56]} 53. Bh5+ {[%emt 0:00:00]} Kf6 {[%emt 0:00:01]} 54. Qg1 {[%emt 0:00:00]} b5 {[%emt 0:00:22]} 55. Qe1 {[%emt 0:00:00]} b4 {[%emt 0:02:09]} 56. Qc1 {[%emt 0:00:00]} Qg8 {[%emt 0:00:20]} 57. Qe1 {[%emt 0:00:00]} Qg2 {[%emt 0:00:13]} 0-1

[Event "47th GRE-chT 2019"]
[Site "Patra"]
[Date "2019.07.05"]
[Round "5.2"]
[White "Pavlidis, Antonios"]
[Black "Safarli, Eltaj"]
[Result "1/2-1/2"]
[ECO "C61"]
[WhiteElo "2549"]
[BlackElo "2608"]
[Annotator "RC"]
[PlyCount "63"]
[EventDate "2019.07.02"]
[EventCountry "GRE"]
[SourceTitle "playchess.com"]
[Source "ChessBase"]
[SourceQuality "1"]
[TimeControl "5400+30"]

1. e4 {[%emt 0:02:51]} e5 {[%emt 0:00:00]} 2. Nf3 {[%emt 0:00:11]} Nc6 {[%emt 0:00:00]} 3. Bb5 {[%emt 0:01:40]} Nd4 {[%emt 0:00:00]} 4. Nxd4 {[%emt 0:00:04]} exd4 {[%emt 0:00:26]} 5. O-O {[%emt 0:00:13]} Bc5 {[%emt 0:02:07]} 6. d3 {[%emt 0:00:06]} c6 {[%emt 0:00:37]} 7. Bc4 {[%emt 0:00:16]} d5 {[%emt 0:00:37]} 8. exd5 {[%emt 0:00:29]} cxd5 {[%emt 0:02:04]} 9. Bb5+ {[%emt 0:00:06]} Bd7 {[%emt 0:02:12]} 10. Bxd7+ {[%emt 0:00:04]} Qxd7 {[%emt 0:10:14]} 11. Bg5 {[%emt 0:02:35]} f6 {[%emt 0:28:39]} 12. Bd2 {[%emt 0:01:18]} Ne7 {[%emt 0:01:37]} 13. c4 {[%emt 0:00:38]} dxc3 {[%emt 0:00:05]} 14. Nxc3 {[%emt 0:00:24]} O-O {[%emt 0:00:13]} 15. Qb3 {[%emt 0:10:50]} Bd4 {[%emt 0:13:53]} 16. Be3 {[%emt 0:02:39]} Bxc3 {[%emt 0:00:51]} 17. bxc3 {[%emt 0:05:35]} Rfe8 {[%emt 0:00:45]} 18. Rfe1 {[%emt 0:07:35]} Nf5 {[%emt 0:01:31]} 19. a4 {[%emt 0:05:05]} Re7 {[%emt 0:05:59]} 20. Bc5 {[%emt 0:02:30]} Rxe1+ {[%emt 0:00:05]} 21. Rxe1 {[%emt 0:00:39]} b6 {[%emt 0:00:03]} 22. Be3 {[%emt 0:01:10]} Re8 {[%emt 0:00:46]} 23. Qb4 {[%emt 0:11:00]} Re5 {[%emt 0:09:09]} 24. a5 {[%emt 0:01:14]} bxa5 {[%emt 0:00:11]} 25. Qxa5 {[%emt 0:06:20]} d4 {[%emt 0:00:14]} 26. Qa2+ {[%emt 0:01:15]} Qe6 {[%emt 0:00:08]} 27. Qxe6+ {[%emt 0:00:02]} Rxe6 {[%emt 0:00:36]} 28. cxd4 {[%emt 0:01:16]} Nxd4 {[%emt 0:04:34]} 29. Ra1 {[%emt 0:00:12]} Nc2 {[%emt 0:00:09]} 30. Rxa7 {[%emt 0:00:30]} Nxe3 {[%emt 0:00:06]} 31. fxe3 {[%emt 0:00:03]} Rxe3 {[%emt 0:00:14]} 32. Rd7 {[%emt 0:00:35]} 1/2-1/2

[Event "47th GRE-chT 2019"]
[Site "Patra"]
[Date "2019.07.05"]
[Round "5.2"]
[White "Mihailidis, Anastasios"]
[Black "Shoker, Samy"]
[Result "0-1"]
[ECO "B07"]
[WhiteElo "2270"]
[BlackElo "2496"]
[Annotator "RC"]
[PlyCount "62"]
[EventDate "2019.07.02"]
[EventCountry "GRE"]
[SourceTitle "playchess.com"]
[Source "ChessBase"]
[SourceQuality "1"]
[TimeControl "5400+30"]

1. d4 {[%emt 0:01:19]} Nf6 {[%emt 0:00:57]} 2. Nc3 {[%emt 0:00:47]} d6 {[%emt 0:01:08]} 3. e4 {[%emt 0:00:38]} g6 {[%emt 0:00:04]} 4. Bc4 {[%emt 0:03:53]} Bg7 {[%emt 0:00:41]} 5. Qe2 {[%emt 0:00:24]} Nc6 {[%emt 0:00:44]} 6. Nf3 {[%emt 0:04:16]} Bg4 {[%emt 0:01:04]} 7. Be3 {[%emt 0:01:03]} e5 {[%emt 0:01:58]} 8. dxe5 {[%emt 0:02:21]} Nxe5 {[%emt 0:01:10]} 9. Bb3 {[%emt 0:01:35]} O-O {[%emt 0:01:12]} 10. h3 {[%emt 0:00:48]} Nxf3+ {[%emt 0:02:56]} 11. gxf3 {[%emt 0:01:40]} Bh5 {[%emt 0:00:17]} 12. Bg5 {[%emt 0:04:54]} Qe8 {[%emt 0:14:34]} 13. Qe3 {[%emt 0:14:26]} Nd7 {[%emt 0:03:22]} 14. Nd5 {[%emt 0:05:06]} Qe5 {[%emt 0:07:21]} 15. c3 {[%emt 0:04:14]} Bxf3 {[%emt 0:02:41]} 16. Qxf3 {[%emt 0:07:37]} Qxg5 {[%emt 0:00:10]} 17. h4 {[%emt 0:00:49]} Qe5 {[%emt 0:11:55]} 18. h5 {[%emt 0:04:50]} c6 {[%emt 0:02:32]} 19. Ne3 {[%emt 0:01:48]} Nf6 {[%emt 0:06:26]} 20. hxg6 {[%emt 0:07:15]} hxg6 {[%emt 0:00:07]} 21. O-O-O {[%emt 0:01:34]} Qxe4 {[%emt 0:10:40]} 22. Qg3 {[%emt 0:05:51]} d5 {[%emt 0:02:03]} 23. Bc2 {[%emt 0:01:31]} Qe6 {[%emt 0:01:20]} 24. Rdg1 {[%emt 0:09:47]} Ne4 {[%emt 0:00:55]} 25. Qh4 {[%emt 0:05:11]} Rfe8 {[%emt 0:00:15]} 26. f3 {[%emt 0:03:39]} Ng3 {[%emt 0:02:18]} 27. Rxg3 {[%emt 0:04:16]} Qxe3+ {[%emt 0:00:08]} 28. Kb1 {[%emt 0:00:02]} Qf2 {[%emt 0:01:44]} 29. a3 {[%emt 0:02:17]} Re2 {[%emt 0:01:27]} 30. Rc1 {[%emt 0:00:07]} Rae8 {[%emt 0:01:23]} 31. Qh3 {[%emt 0:00:55]} Re1 {[%emt 0:00:54]} 0-1

[Event "47th GRE-chT 2019"]
[Site "Patra"]
[Date "2019.07.05"]
[Round "5.3"]
[White "Halkias, Stelios"]
[Black "Sandalakis, Angelos"]
[Result "1-0"]
[ECO "A13"]
[WhiteElo "2553"]
[BlackElo "2429"]
[Annotator "RC"]
[PlyCount "59"]
[EventDate "2019.07.02"]
[EventCountry "GRE"]
[SourceTitle "playchess.com"]
[Source "ChessBase"]
[SourceQuality "1"]
[TimeControl "5400+30"]

1. Nf3 {[%emt 0:02:29]} Nf6 {[%emt 0:00:00]} 2. c4 {[%emt 0:00:05]} e6 {[%emt 0:00:00]} 3. g3 {[%emt 0:00:36]} d5 {[%emt 0:00:00]} 4. Bg2 {[%emt 0:00:14]} d4 {[%emt 0:00:10]} 5. e3 {[%emt 0:01:52]} c5 {[%emt 0:00:42]} 6. exd4 {[%emt 0:00:12]} cxd4 {[%emt 0:00:06]} 7. O-O {[%emt 0:03:35]} Nc6 {[%emt 0:00:09]} 8. d3 {[%emt 0:00:10]} Bd6 {[%emt 0:00:16]} 9. Bg5 {[%emt 0:01:16]} h6 {[%emt 0:00:13]} 10. Bxf6 {[%emt 0:00:04]} Qxf6 {[%emt 0:00:04]} 11. Nbd2 {[%emt 0:01:18]} Qe7 {[%emt 0:09:41]} 12. a3 {[%emt 0:08:10]} a5 {[%emt 0:00:24]} 13. Ne4 {[%emt 0:02:14]} Bc7 {[%emt 0:00:17]} 14. c5 {[%emt 0:03:43]} O-O {[%emt 0:01:55]} 15. Nfd2 {[%emt 0:05:05]} e5 {[%emt 0:13:54]} 16. Nc4 {[%emt 0:17:18]} a4 {[%emt 0:12:31]} 17. Ned6 {[%emt 0:06:18]} Bxd6 {[%emt 0:16:42]} 18. cxd6 {[%emt 0:15:53]} Qd8 {[%emt 0:04:43]} 19. Qh5 {[%emt 0:03:30]} Be6 {[%emt 0:07:29]} 20. Bxc6 {[%emt 0:04:09]} bxc6 {[%emt 0:00:42]} 21. Qxe5 {[%emt 0:00:25]} Qf6 {[%emt 0:00:25]} 22. Qxf6 {[%emt 0:05:49]} gxf6 {[%emt 0:00:20]} 23. Rac1 {[%emt 0:00:04]} Rfd8 {[%emt 0:01:31]} 24. Rfe1 {[%emt 0:10:30]} Rab8 {[%emt 0:08:23]} 25. Re2 {[%emt 0:03:50]} Rb3 {[%emt 0:03:51]} 26. Na5 {[%emt 0:01:14]} Rxd3 {[%emt 0:00:10]} 27. Nb7 {[%emt 0:01:40]} Rb8 {[%emt 0:09:35]} 28. Nc5 {[%emt 0:01:04]} Bg4 {[%emt 0:03:16]} 29. Re4 {[%emt 0:00:28]} Bf3 {[%emt 0:01:30]} 30. Rf4 {[%emt 0:00:22]} 1-0

[Event "47th GRE-chT 2019"]
[Site "Patra"]
[Date "2019.07.05"]
[Round "5.3"]
[White "Ergazakis, Ioannis"]
[Black "Fragkos, Vasilios"]
[Result "1/2-1/2"]
[ECO "B30"]
[WhiteElo "2281"]
[BlackElo "2044"]
[Annotator "NA RC"]
[PlyCount "79"]
[EventDate "2019.07.02"]
[EventCountry "GRE"]
[SourceTitle "playchess.com"]
[Source "ChessBase"]
[SourceQuality "1"]
[TimeControl "5400+30"]

1. e4 {[%emt 0:00:00]} c5 {[%emt 0:02:38]} 2. Nf3 {[%emt 0:00:00]} Nc6 {[%emt 0:00:10]} 3. Nc3 {[%emt 0:00:00]} e5 {[%emt 0:03:40]} 4. Bc4 {[%emt 0:00:14]} d6 {[%emt 0:02:54]} 5. d3 {[%emt 0:05:06]} Be7 {[%emt 0:01:53]} 6. Nd2 {[%emt 0:02:09]} Nf6 {[%emt 0:02:05]} 7. Nf1 {[%emt 0:00:34]} Bg4 {[%emt 0:05:30]} 8. f3 {[%emt 0:00:17]} Be6 {[%emt 0:00:06]} 9. Ne3 {[%emt 0:00:23]} O-O {[%emt 0:01:55]} 10. O-O {[%emt 0:00:53]} a6 {[%emt 0:01:08]} 11. a4 {[%emt 0:00:28]} Nb4 {[%emt 0:06:16]} 12. a5 {[%emt 0:12:59]} Nc6 {[%emt 0:13:04]} 13. Bxe6 {[%emt 0:07:19]} fxe6 {[%emt 0:00:13]} 14. Nc4 {[%emt 0:00:08]} Qc7 {[%emt 0:20:48]} 15. f4 {[%emt 0:07:52]} d5 {[%emt 0:05:17]} 16. exd5 {[%emt 0:12:02]} exd5 {[%emt 0:00:46]} 17. Nxe5 {[%emt 0:08:11]} Nxe5 {[%emt 0:00:13]} 18. fxe5 {[%emt 0:00:05]} Qxe5 {[%emt 0:00:04]} 19. Bf4 {[%emt 0:00:14]} Qe6 {[%emt 0:06:59]} 20. Qf3 {[%emt 0:11:56]} Rae8 {[%emt 0:02:37]} 21. Rae1 {[%emt 0:01:11]} Qc6 {[%emt 0:02:19]} 22. Be5 {[%emt 0:04:50]} Rd8 {[%emt 0:05:49]} 23. Qh3 {[%emt 0:03:28]} Qd7 {[%emt 0:02:44]} 24. Qxd7 {[%emt 0:02:06]} Rxd7 {[%emt 0:00:16]} 25. Na4 {[%emt 0:00:22]} c4 {[%emt 0:01:01]} 26. Nb6 {[%emt 0:06:55]} Bc5+ {[%emt 0:00:30]} 27. d4 {[%emt 0:00:34]} Bxb6 {[%emt 0:00:22]} 28. axb6 {[%emt 0:00:05]} Ne4 {[%emt 0:00:36]} 29. Rxf8+ {[%emt 0:03:42]} Kxf8 {[%emt 0:00:11]} 30. Bc7 {[%emt 0:00:47]} Rf7 {[%emt 0:05:22]} 31. Ra1 {[%emt 0:01:14]} Ke7 {[%emt 0:04:52]} 32. b3 {[%emt 0:01:43]} c3 {[%emt 0:00:52]} 33. Re1 {[%emt 0:06:04]} Kd7 {[%emt 0:00:44]} 34. Re2 {[%emt 0:01:09]} Kc6 {[%emt 0:00:28]} 35. h4 {[%emt 0:00:26]} Kb5 {[%emt 0:00:25]} 36. Re1 {[%emt 0:00:40]} Kb4 {[%emt 0:00:20]} 37. Ra1 {[%emt 0:00:27]} Kb5 {[%emt 0:00:53]} 38. Re1 {[%emt 0:00:24]} Kb4 {[%emt 0:00:05]} 39. Ra1 {[%emt 0:00:32]} Kb5 {[%emt 0:00:01]} 40. Re1 {[%emt 0:00:00]} 1/2-1/2

[Event "47th GRE-chT 2019"]
[Site "Patra"]
[Date "2019.07.05"]
[Round "5.4"]
[White "Kanakaris, Georgios"]
[Black "Georgiadis, Ioannis"]
[Result "1/2-1/2"]
[ECO "E16"]
[WhiteElo "2409"]
[BlackElo "2476"]
[Annotator "RC"]
[PlyCount "70"]
[EventDate "2019.07.02"]
[EventCountry "GRE"]
[SourceTitle "playchess.com"]
[Source "ChessBase"]
[SourceQuality "1"]
[TimeControl "5400+30"]

1. d4 {[%emt 0:06:55]} Nf6 {[%emt 0:00:00]} 2. c4 {[%emt 0:00:05]} e6 {[%emt 0:00:00]} 3. Nf3 {[%emt 0:01:55]} b6 {[%emt 0:00:21]} 4. g3 {[%emt 0:00:20]} Bb7 {[%emt 0:00:14]} 5. Bg2 {[%emt 0:00:53]} g6 {[%emt 0:02:20]} 6. O-O {[%emt 0:00:19]} Bg7 {[%emt 0:00:24]} 7. Nc3 {[%emt 0:00:40]} Ne4 {[%emt 0:18:41]} 8. Qc2 {[%emt 0:01:06]} Nxc3 {[%emt 0:00:09]} 9. Qxc3 {[%emt 0:13:27]} O-O {[%emt 0:00:54]} 10. Bg5 {[%emt 0:00:30]} f6 {[%emt 0:03:58]} 11. Be3 {[%emt 0:20:19]} Qe7 {[%emt 0:12:20]} 12. Rfd1 {[%emt 0:04:53]} d6 {[%emt 0:06:47]} 13. Rac1 {[%emt 0:12:40]} c5 {[%emt 0:04:53]} 14. Qd2 {[%emt 0:02:03]} Na6 {[%emt 0:29:42]} 15. Bh6 {[%emt 0:03:32]} Rfd8 {[%emt 0:01:59]} 16. Bxg7 {[%emt 0:00:20]} Kxg7 {[%emt 0:03:14]} 17. Qe3 {[%emt 0:02:52]} Nc7 {[%emt 0:02:25]} 18. Nh4 {[%emt 0:01:32]} Bxg2 {[%emt 0:00:36]} 19. Nxg2 {[%emt 0:07:58]} e5 {[%emt 0:00:29]} 20. dxe5 {[%emt 0:00:31]} dxe5 {[%emt 0:00:06]} 21. f4 {[%emt 0:03:56]} e4 {[%emt 0:00:03]} 22. f5 {[%emt 0:01:12]} Qe5 {[%emt 0:01:16]} 23. fxg6 {[%emt 0:00:19]} hxg6 {[%emt 0:00:08]} 24. Qf4 {[%emt 0:01:23]} Qxf4 {[%emt 0:00:42]} 25. gxf4 {[%emt 0:02:07]} Kf7 {[%emt 0:03:32]} 26. Ne3 {[%emt 0:01:32]} Ne6 {[%emt 0:01:50]} 27. Rxd8 {[%emt 0:00:22]} Rxd8 {[%emt 0:00:13]} 28. Nd5 {[%emt 0:00:56]} Nd4 {[%emt 0:01:17]} 29. Kf2 {[%emt 0:01:04]} Rh8 {[%emt 0:01:52]} 30. Kg2 {[%emt 0:04:29]} Nxe2 {[%emt 0:00:09]} 31. Re1 {[%emt 0:00:06]} Nd4 {[%emt 0:00:09]} 32. Rxe4 {[%emt 0:00:05]} Nf5 {[%emt 0:01:55]} 33. Re1 {[%emt 0:01:18]} Rd8 {[%emt 0:00:10]} 34. a4 {[%emt 0:01:52]} Rd6 {[%emt 0:01:01]} 35. Kf2 {[%emt 0:01:26]} Re6 {[%emt 0:00:46]} 1/2-1/2